bitfinex/quotes_ETHUSD_20240607
["timestamp","ask_amount","ask_price","bid_price","bid_amount"]
[1717783562789,11.29535663,3638.7,3632.3,0.008]
[1717783562941,11.29535663,3638.7,3631.8,2.92538952]
[1717783562942,11.2932,3638.7,3632.6,0.008]
[1717783563144,11.2932,3638.7,3632.6,2.696]
[1717783563386,11.2932,3638.7,3632.9,0.008]
[1717783563387,4.16,3637.6,3632.9,0.008]
[1717783563693,4.16,3637.6,3631.8,2.2923]
[1717783563694,0.00215663,3638.0,3633.0,2.688]
[1717783563992,4.16,3638.0,3633.8,2.3695]
[1717783564190,1.099823,3639.6,3633.8,2.3695]
[1717783564191,1.099823,3639.6,3633.9,2.688]
[1717783564344,1.02800294,3640.3,3633.9,2.688]
[1717783564345,1.02800294,3640.3,3634.0,3.0]
[1717783564686,0.00215663,3640.3,3634.1,2.4622]
[1717783564872,0.00215663,3641.3,3634.1,2.4622]
[1717783565197,1.53143604,3641.6,3634.7,0.74784337]
[1717783565397,1.53143604,3641.6,3634.0,3.0]
[1717783565398,0.99165163,3641.7,3634.8,4.969]
[1717783565706,1.099037,3642.4,3634.8,4.969]
[1717783565707,1.53143604,3642.4,3634.9,3.0]
[1717783565845,1.00146653,3643.5,3637.0,0.74784337]
[1717783565846,1.53143604,3642.8,3637.0,0.74784337]
[1717783566044,1.53143604,3642.8,3634.9,3.008]
[1717783566045,1.53143604,3642.8,3637.2,2.281]
[1717783566298,0.00215663,3643.2,3637.2,2.281]
[1717783566509,1.53143604,3643.2,3637.2,2.281]
[1717783566655,1.53143604,3643.4,3637.2,5.281]
[1717783566963,1.53143604,3643.8,3637.7,0.74784337]
[1717783567147,3.028,3645.3,3640.2,0.74784337]
[1717783567353,0.00215663,3647.0,3637.8,6.169]
[1717783567354,1.53143604,3646.6,3639.8,1.905]
[1717783567597,4.16,3645.3,3640.3,0.008]
[1717783567801,0.73322685,3646.2,3639.4,0.008]
[1717783567949,0.73322685,3645.6,3639.7,0.008]
[1717783568156,0.73322685,3642.7,3639.7,0.008]
[1717783568392,4.27402604,3646.2,3638.8,0.008]
[1717783568393,0.73322685,3643.0,3638.8,0.008]
[1717783568706,0.73322685,3643.7,3638.8,2.688]
[1717783568990,0.73322685,3643.2,3639.0,0.008]
[1717783569205,0.73322685,3644.8,3638.9,1.098325]
[1717783569354,2.7319,3645.7,3638.9,1.098325]
[1717783569355,0.73322685,3642.6,3639.4,0.008]
[1717783569551,0.73322685,3642.6,3638.9,1.098325]
[1717783569552,0.73322685,3642.0,3638.9,1.098325]
[1717783569755,0.73322685,3642.1,3638.9,1.098325]
[1717783570032,0.35787788,3643.6,3638.5,0.008]
[1717783570033,0.73322685,3641.8,3638.5,0.008]
[1717783570152,0.73322685,3640.4,3638.5,0.008]
[1717783570356,0.73322685,3641.4,3638.0,1.099192]
[1717783570556,0.73322685,3642.4,3638.0,1.099192]
[1717783570781,0.73322685,3642.3,3638.3,0.008]
[1717783570983,0.272,3644.1,3638.2,0.008]
[1717783570984,0.73322685,3643.4,3638.2,0.008]
[1717783571195,0.73322685,3643.8,3638.6,0.008]
[1717783571397,0.73322685,3644.2,3638.0,0.008]
[1717783571562,0.008,3641.8,3638.0,0.008]
[1717783571757,0.73322685,3641.0,3632.6,1.37216508]
[1717783572001,0.73322685,3641.0,3631.5,2.2712]
[1717783572002,0.008,3639.0,3633.7,1.37258457]
[1717783572157,8.81637284,3640.9,3632.7,0.01677315]
[1717783572158,0.73322685,3638.6,3632.7,1.099496]
[1717783572356,0.73322685,3637.2,3632.7,1.099496]
[1717783572594,0.73322685,3636.6,3632.7,1.018496]
[1717783572801,0.73322685,3634.9,3629.7,0.40694737]
[1717783572969,0.275,3636.5,3629.7,0.40694737]
[1717783572970,0.73322685,3632.5,3629.7,0.40694737]
[1717783573270,0.73322685,3632.0,3630.1,1.018496]
[1717783573470,0.73322685,3631.6,3628.1,0.3383]
[1717783573673,0.73322685,3630.7,3628.1,0.3383]
[1717783573876,0.275,3631.7,3628.2,0.06375759]
[1717783574170,2.3962,3637.3,3628.8,0.008]
[1717783574374,0.30633722,3636.3,3630.7,0.008]
[1717783574571,0.75,3640.0,3636.8,0.23955429]
[1717783574856,1.0,3643.1,3635.9,0.04110606]
[1717783574857,2.3962,3641.5,3639.5,0.005]
[1717783575090,2.23594316,3642.9,3638.3,0.008]
[1717783575295,3.47135865,3643.8,3637.6,0.008]
[1717783575498,2.4614,3643.8,3637.9,0.008]
[1717783576461,5.8028,3644.8,3638.0,0.008]
[1717783576690,5.8028,3644.8,3638.8,2.3659]
[1717783576886,5.8028,3644.8,3639.2,0.008]
[1717783577361,1.53232138,3645.6,3639.2,0.008]
[1717783577580,1.53232138,3645.1,3639.5,0.008]
[1717783577918,0.42984141,3644.1,3639.3,0.008]
[1717783578099,0.42984141,3644.1,3639.0,0.008]
[1717783579024,1.53232138,3643.9,3638.3,0.008]
[1717783579322,1.53232138,3643.4,3638.2,0.008]
[1717783579475,1.5322174,3642.7,3638.1,0.008]
[1717783579677,1.5322174,3643.0,3637.5,0.008]
[1717783579930,1.5322174,3643.3,3637.6,0.008]
[1717783580076,0.70657531,3645.3,3635.0,0.45351179]
[1717783580077,1.06368762,3645.4,3637.8,2.3574]
[1717783580278,1.06368762,3645.4,3641.1,0.5261]
[1717783580579,0.5948919,3646.2,3642.1,0.008]
[1717783580779,0.5948919,3646.2,3641.1,0.5261]
[1717783580780,1.097606,3647.5,3642.4,0.008]
[1717783580979,1.097606,3647.5,3641.1,0.5261]
[1717783580980,0.17262814,3647.5,3642.8,0.008]
[1717783581303,0.64142386,3647.5,3642.8,0.008]
[1717783581478,0.46879572,3647.2,3642.8,0.008]
[1717783581675,0.46879572,3646.8,3641.1,0.5261]
[1717783581881,0.008,3645.3,3641.1,0.5261]
[1717783582102,0.008,3645.3,3641.2,3.312]
[1717783582637,0.008,3645.3,3641.1,0.5261]
[1717783583210,0.008,3644.9,3641.1,0.5261]
[1717783583979,0.0219306,3644.9,3641.2,1.0]
[1717783584214,0.0219306,3644.9,3641.1,0.479]
[1717783584215,0.008,3644.2,3641.1,0.479]
[1717783584448,0.008,3644.1,3641.1,0.479]
[1717783584784,0.0139306,3644.9,3641.5,0.008]
[1717783585007,0.1598797,3647.7,3641.6,4.062]
[1717783585229,0.1598797,3647.7,3643.1,0.008]
[1717783585514,0.1598797,3647.7,3640.9,3.0]
[1717783585515,0.008,3646.3,3638.1,1.323921]
[1717783585724,0.1598797,3647.7,3640.1,0.54540167]
[1717783585725,0.008,3644.7,3640.1,0.54540167]
[1717783585892,0.008,3645.4,3642.2,1.75]
[1717783586225,0.1598797,3647.7,3640.3,0.275]
[1717783586226,0.1598797,3647.7,3643.3,0.008]
[1717783586428,0.1598797,3647.7,3643.4,3.312]
[1717783586635,0.1598797,3647.7,3643.7,0.008]
[1717783587127,0.1598797,3647.7,3643.8,0.4649]
[1717783587342,0.1598797,3647.7,3643.8,0.4729]
[1717783587645,0.1598797,3647.7,3643.8,0.008]
[1717783587822,0.1598797,3647.7,3643.7,0.008]
[1717783588383,0.1598797,3647.7,3643.8,2.098]
[1717783588607,0.1598797,3647.7,3644.0,1.633]
[1717783588805,0.1598797,3647.7,3643.8,1.473]
[1717783588806,0.1598797,3647.7,3643.9,0.008]
[1717783589019,0.1598797,3647.7,3643.9,0.75]
[1717783589333,0.1598797,3647.7,3643.9,1.633]
[1717783589701,0.1598797,3647.7,3644.7,1.633]
[1717783589910,0.1598797,3647.7,3644.8,3.312]
[1717783590240,0.1598797,3647.7,3644.5,3.0]
[1717783590530,0.1598797,3647.7,3644.1,0.008]
[1717783590531,0.1598797,3647.7,3644.6,3.312]
[1717783590728,0.10507924,3647.7,3644.8,0.008]
[1717783590930,0.10507924,3647.7,3644.9,0.008]
[1717783591135,0.10507924,3647.7,3643.8,0.465]
[1717783591136,0.10507924,3647.7,3644.8,0.008]
[1717783591308,0.10507924,3647.7,3644.7,0.008]
[1717783591506,0.10507924,3647.7,3644.6,0.008]
[1717783591909,0.10507924,3647.7,3644.4,0.008]
[1717783593550,0.06854511,3647.6,3644.4,0.008]
[1717783593696,0.10507924,3647.7,3644.4,0.008]
[1717783594101,0.10507924,3647.7,3642.0,0.465]
[1717783594102,0.10507924,3647.7,3644.5,0.008]
[1717783594426,0.10507924,3647.7,3642.0,0.465]
[1717783594427,0.10507924,3647.7,3644.4,0.008]
[1717783595765,0.06854478,3647.6,3644.4,0.008]
[1717783595901,0.06855182,3647.5,3644.4,0.008]
[1717783596105,0.10507924,3647.7,3644.4,0.008]
[1717783596917,0.10507924,3647.7,3641.8,0.79396724]
[1717783596918,0.275,3647.5,3643.9,0.008]
[1717783597130,0.275,3647.5,3642.7,1.096666]
[1717783597131,2.74229,3646.6,3642.7,1.096666]
[1717783597331,2.74229,3646.6,3638.5,0.57933444]
[1717783597332,3.01842,3645.1,3638.5,0.57933444]
[1717783597537,3.01842,3645.1,3638.1,0.465]
[1717783597538,0.191,3644.1,3639.7,1.09846]
[1717783597735,0.06864949,3645.1,3639.7,1.09846]
[1717783597907,2.4656,3646.0,3639.7,1.09846]
[1717783597908,0.275,3645.0,3641.3,0.008]
[1717783598109,3.0,3645.9,3641.3,0.008]
[1717783598415,0.06858326,3645.8,3641.6,0.008]
[1717783598636,5.05429,3643.4,3639.7,1.09846]
[1717783598818,1.39285466,3642.2,3639.7,1.09846]
[1717783599018,0.07665873,3643.3,3639.7,1.09846]
[1717783599019,4.16,3639.8,3639.7,1.09846]
[1717783599414,7.16,3639.8,3634.0,0.69296923]
[1717783599616,7.16,3639.8,3632.5,1.29740627]
[1717783599617,1.38952659,3639.6,3633.8,0.6381376]
[1717783599884,1.38952659,3639.6,3632.2,2.81526153]
[1717783599885,2.74827,3638.7,3633.9,1.09846]
[1717783600039,0.275,3637.9,3630.9,1.33713615]
[1717783600350,0.34053067,3637.8,3630.9,1.33713615]
[1717783600510,2.3284,3637.8,3631.5,1.647]
[1717783600845,2.3284,3637.8,3631.3,1.0]
[1717783600846,2.74907,3637.6,3631.6,0.0232824]
[1717783601049,1.39285466,3636.4,3631.0,1.0]
[1717783601255,1.39285466,3635.8,3631.1,0.02530775]
[1717783601408,0.06878616,3636.2,3630.4,3.312]
[1717783601607,5.606564,3636.3,3630.4,3.312]
[1717783601608,0.313364,3635.8,3630.5,2.647]
[1717783601847,1.53322942,3635.0,3630.5,2.647]
[1717783602007,5.2932,3636.3,3631.2,1.647]
[1717783602008,0.008,3635.5,3631.2,1.647]
[1717783602208,1.19017383,3638.9,3631.1,0.481]
[1717783602209,0.008,3635.9,3631.4,1.647]
[1717783602451,0.59500377,3635.8,3633.3,1.0]
[1717783602687,1.3543,3639.3,3633.5,2.128]
[1717783602845,2.746,3641.7,3633.5,2.128]
[1717783603021,2.2987,3641.8,3633.5,2.128]
[1717783603022,0.50447,3641.6,3640.5,0.04499059]
[1717783603226,2.2987,3641.8,3640.5,0.04499059]
[1717783603424,2.4508,3643.8,3640.5,0.04499059]
[1717783603659,2.4508,3643.8,3641.3,1.0]
[1717783603882,2.71718223,3643.8,3641.3,1.0]
[1717783604016,2.71718223,3643.8,3641.3,0.73320462]
[1717783604376,2.4508,3643.8,3641.3,0.73320462]
[1717783604656,1.57562521,3645.1,3641.3,0.73320462]
[1717783604876,2.4508,3645.5,3641.3,0.73320462]
[1717783605363,2.4508,3645.5,3641.4,0.05319379]
[1717783605581,2.4508,3645.5,3640.9,0.008]
[1717783605582,0.23565723,3645.4,3640.9,0.008]
[1717783605709,0.30921385,3645.4,3640.6,0.008]
[1717783605910,2.7435,3645.0,3640.6,0.008]
[1717783606114,0.26524057,3644.9,3640.5,0.04499059]
[1717783606518,1.83579038,3645.3,3640.5,0.04499059]
[1717783606710,1.83579038,3645.3,3640.5,0.05299059]
[1717783606914,1.83579038,3645.4,3640.5,0.05299059]
[1717783607116,2.4508,3645.5,3640.6,0.008]
[1717783607117,1.8463056,3645.2,3640.6,0.008]
[1717783607355,4.63174849,3645.5,3640.5,0.05299059]
[1717783607356,4.2971056,3645.5,3640.5,0.05299059]
[1717783607574,4.2971056,3645.5,3640.6,0.008]
[1717783607794,5.2694056,3645.6,3640.6,0.008]
[1717783607936,3.4231,3645.6,3640.7,3.312]
[1717783608134,3.4231,3645.6,3640.7,0.008]
[1717783608349,5.2694056,3645.6,3640.4,0.481]
[1717783608572,1.8463056,3645.7,3640.4,0.481]
[1717783608771,1.8463056,3645.6,3640.4,0.481]
[1717783609083,2.03093616,3645.6,3640.4,0.481]
[1717783609235,1.8463056,3645.4,3644.0,0.005]
[1717783609431,1.8463056,3645.2,3638.5,0.481]
[1717783609636,2.74301,3645.7,3638.5,0.481]
[1717783609637,1.8463056,3645.0,3638.5,0.481]
[1717783609961,1.8463056,3644.7,3638.5,0.481]
[1717783610136,2.74473,3643.4,3637.8,0.275]
[1717783610338,0.2728357,3644.1,3637.8,0.275]
[1717783610899,0.2728357,3644.1,3640.1,0.008]
[1717783611034,3.0,3644.4,3640.1,0.008]
[1717783611234,0.273055,3644.3,3640.3,0.008]
[1717783611438,0.275,3644.7,3637.9,0.275]
[1717783611439,0.275,3644.7,3640.2,0.008]
[1717783611642,0.273055,3644.5,3640.4,0.008]
[1717783611864,0.275,3644.5,3640.3,0.008]
[1717783612252,1.8463056,3644.7,3640.0,0.008]
[1717783612456,1.8463056,3644.7,3638.2,0.275]
[1717783612457,4.1591056,3644.8,3640.5,0.008]
[1717783612791,2.3128,3644.8,3640.5,0.008]
[1717783612994,0.2971681,3644.7,3640.6,0.481]
[1717783613306,1.8463056,3645.7,3641.3,0.008]
[1717783613461,1.8463056,3646.0,3641.7,0.008]
[1717783613667,0.27793268,3646.0,3641.3,1.0]
[1717783613985,2.18094849,3646.5,3642.6,0.008]
[1717783614143,2.18094849,3646.5,3642.7,0.008]
[1717783614343,2.18094849,3646.7,3643.0,0.008]
[1717783614641,2.18094849,3647.0,3643.3,0.008]
[1717783614842,2.18094849,3647.1,3643.4,0.008]
[1717783615077,2.18094849,3647.1,3643.5,0.008]
[1717783615277,2.18094849,3647.2,3643.5,0.008]
[1717783615438,2.18094849,3646.9,3646.7,1.39285466]
[1717783615643,0.275,3647.6,3642.8,3.312]
[1717783615644,0.42945837,3646.5,3644.7,0.008]
[1717783615880,0.42945837,3646.5,3642.8,3.312]
[1717783615881,0.42945837,3646.5,3646.4,1.39285466]
[1717783616095,2.18094849,3647.0,3646.4,1.39285466]
[1717783616296,2.18094849,3647.3,3646.9,1.39285466]
[1717783616456,2.18094849,3647.4,3647.2,1.39285466]
[1717783616788,2.6347032,3647.7,3643.8,0.481]
[1717783616789,0.10507925,3647.7,3647.3,1.39285466]
[1717783617110,0.10507925,3647.7,3647.6,1.39285466]
[1717783618244,0.10507925,3647.7,3645.8,0.05481632]
[1717783618449,0.05029266,3647.7,3645.2,3.312]
[1717783618675,0.05029266,3647.7,3646.6,1.096465]
[1717783619703,0.05029266,3647.7,3647.6,1.39285466]
[1717783620266,0.05029266,3647.7,3647.6,2.48896166]
[1717783620595,0.05029266,3647.7,3647.6,1.39285466]
[1717783620904,0.05029266,3647.7,3647.6,0.84285466]
[1717783621267,0.01217104,3647.7,3647.6,0.84285466]
[1717783621503,2.313,3652.7,3647.6,0.84285466]
[1717783621805,2.73797,3652.4,3646.8,0.008]
[1717783622013,2.73797,3652.4,3649.5,1.39285466]
[1717783622312,1.096036,3652.1,3649.5,1.39285466]
[1717783622507,1.096036,3652.1,3649.6,1.40943677]
[1717783622666,2.313,3652.7,3650.4,1.39285466]
[1717783622864,2.313,3652.7,3647.7,0.008]
[1717783623088,2.73835,3651.9,3649.3,1.39285466]
[1717783623291,2.73835,3651.9,3647.4,0.008]
[1717783623490,2.313,3652.7,3647.0,2.1158]
[1717783623692,0.75,3653.9,3647.2,2.647]
[1717783623876,2.7371,3653.5,3650.5,1.39285466]
[1717783624205,2.7371,3653.5,3647.3,3.312]
[1717783624206,2.7367,3654.1,3650.6,1.39285466]
[1717783624509,2.4358,3654.5,3650.6,1.39285466]
[1717783624801,1.095324,3654.3,3651.4,1.39285466]
[1717783625001,1.095324,3654.3,3651.5,0.008]
[1717783625002,0.0684411,3654.2,3651.5,0.008]
[1717783625310,0.995324,3654.3,3651.5,1.40085466]
[1717783625614,2.73718,3653.4,3651.5,0.008]
[1717783625818,2.73667,3654.1,3651.7,1.39285466]
[1717783625999,2.73667,3654.1,3646.5,1.09641]
[1717783626000,0.34446816,3653.7,3651.5,0.008]
[1717783626221,0.06844644,3653.7,3649.8,0.008]
[1717783626534,0.995324,3654.3,3652.3,1.39285466]
[1717783626713,3.731874,3654.3,3652.3,1.39285466]
[1717783627021,2.73671,3654.1,3651.8,0.008]
[1717783627224,0.995324,3654.3,3652.7,1.39285466]
[1717783627424,4.12,3653.2,3652.7,1.39285466]
[1717783627902,4.12,3653.2,3653.0,1.39285466]
[1717783628081,4.12,3653.2,3651.7,0.008]
[1717783628287,4.12,3653.2,3650.7,0.008]
[1717783628609,4.12,3653.2,3652.3,1.39285466]
[1717783628811,4.12,3653.2,3652.6,1.39285466]
[1717783629123,4.12,3653.2,3650.0,200.0]
[1717783629124,4.12,3653.2,3651.5,0.008]
[1717783629331,0.75,3654.3,3650.7,0.008]
[1717783629530,2.56445399,3654.2,3651.0,0.008]
[1717783629697,0.33791799,3654.1,3651.0,0.008]
[1717783629900,2.73734,3653.2,3651.0,0.008]
[1717783630267,2.73757,3652.9,3650.7,0.008]
[1717783630435,3.26028676,3653.1,3650.0,200.0]
[1717783630436,3.06846698,3652.8,3650.0,200.0]
[1717783630583,2.73781,3652.6,3650.5,0.008]
[1717783630785,3.0,3652.7,3650.0,195.24604138]
[1717783630786,0.36804985,3652.5,3650.0,195.24604138]
[1717783631115,0.2995817,3652.5,3650.0,195.24604138]
[1717783631298,0.008,3652.6,3650.0,195.24604138]
[1717783631628,5.7191,3652.6,3650.0,195.24604138]
[1717783631826,6.0266817,3652.6,3650.0,195.24604138]
[1717783632042,1.39285466,3652.5,3650.0,195.24604138]
[1717783632192,2.14867732,3652.5,3650.0,195.24604138]
[1717783632519,0.275,3652.3,3650.0,195.24604138]
[1717783632723,2.73819,3652.1,3650.0,195.24604138]
[1717783632942,0.30112938,3652.0,3650.0,195.24604138]
[1717783633231,0.008,3652.4,3650.0,195.24604138]
[1717783633397,0.275,3652.6,3650.0,195.24604138]
[1717783633597,0.283,3652.6,3650.1,1.39285466]
[1717783633798,3.00040223,3652.5,3650.3,1.39285466]
[1717783634023,0.26249223,3652.5,3650.0,195.24604138]
[1717783634214,0.008,3652.6,3650.4,0.01647586]
[1717783634413,1.33023586,3656.9,3650.6,0.005]
[1717783634414,0.008,3653.3,3650.6,0.005]
[1717783634787,0.008,3653.3,3651.8,1.39285466]
[1717783634988,2.73708,3653.6,3651.9,1.39285466]
[1717783635426,2.73708,3653.6,3652.0,1.39285466]
[1717783635588,4.12993466,3653.6,3650.6,0.005]
[1717783635793,4.12993466,3653.6,3651.4,1.39285466]
[1717783635794,0.008,3653.2,3651.4,1.39285466]
[1717783635994,2.73708,3653.6,3651.4,1.39285466]
[1717783635995,0.008,3653.4,3651.4,1.39285466]
[1717783636312,2.73728,3653.3,3650.6,0.005]
[1717783636625,2.73753,3653.0,3651.0,1.39285466]
[1717783636815,2.73782,3652.6,3651.0,1.39285466]
[1717783637134,0.008,3653.0,3652.5,1.39285466]
[1717783637288,2.7364,3654.5,3652.5,1.39285466]
[1717783637289,0.008,3654.2,3652.5,1.39285466]
[1717783637857,3.412,3652.6,3652.5,1.39285466]
[1717783638073,8.1408,3654.6,3652.6,1.39285466]
[1717783638217,8.1408,3654.6,3652.9,1.39285466]
[1717783638417,0.1598797,3654.9,3650.6,0.005]
[1717783638656,0.07642679,3654.8,3650.6,0.005]
[1717783638960,2.73699,3653.7,3650.6,0.005]
[1717783639167,1.39285466,3653.5,3650.6,0.005]
[1717783639485,2.73699,3653.7,3650.6,0.005]
[1717783639874,2.9432,3650.8,3650.6,0.005]
[1717783640070,0.008,3652.5,3650.6,0.005]
[1717783640268,6.6257,3654.3,3650.6,0.005]
[1717783640561,0.008,3653.8,3650.7,1.39285466]
[1717783640763,0.008,3654.0,3650.8,0.0164177]
[1717783640968,0.008,3653.8,3650.9,1.39285466]
[1717783641167,0.008,3653.9,3650.9,1.39285466]
[1717783641368,0.008,3653.9,3650.6,0.005]
[1717783641369,1.66785466,3653.8,3650.6,0.005]
[1717783641596,0.008,3653.5,3650.6,0.005]
[1717783641767,3.412,3650.7,3650.6,0.005]
[1717783641941,0.275,3652.6,3650.6,0.005]
[1717783642142,0.008,3653.1,3650.6,0.005]
[1717783642342,0.0700744,3653.1,3650.6,0.005]
[1717783642802,1.39285466,3653.0,3650.6,0.005]
[1717783642954,3.86641507,3652.9,3650.6,0.005]
[1717783643290,1.14241749,3652.5,3650.6,0.005]
[1717783643782,2.7386,3651.5,3650.6,0.005]
[1717783644087,0.26932699,3652.4,3650.6,0.005]
[1717783644088,0.275,3651.3,3650.6,0.005]
[1717783644423,0.28796468,3652.4,3650.0,192.74604138]
[1717783644424,0.005,3650.1,3650.0,192.74604138]
[1717783644622,0.275,3650.7,3650.0,192.74604138]
[1717783644623,6.185,3650.3,3650.0,182.74634138]
[1717783644773,6.185,3650.3,3650.0,181.25746001]
[1717783644774,0.66224162,3650.1,3650.0,181.25746001]
[1717783645105,0.99514044,3650.1,3650.0,179.36816135]
[1717783645271,0.99514044,3650.1,3650.0,176.03406128]
[1717783645272,5.3879951,3650.1,3650.0,176.03406128]
[1717783645471,3.9735521,3650.1,3650.0,172.78356265]
[1717783645657,3.9735521,3650.1,3650.0,170.94995339]
[1717783645860,3.9735521,3650.1,3650.0,167.53724813]
[1717783646067,10.12109063,3650.1,3650.0,139.36660314]
[1717783646281,15.46619063,3650.1,3650.0,138.47550737]
[1717783646594,18.14565926,3650.1,3650.0,133.50940165]
[1717783646800,15.9511392,3650.1,3650.0,132.34038703]
[1717783646980,14.27860067,3650.1,3650.0,131.51528703]
[1717783647297,14.27860067,3650.1,3650.0,131.24028703]
[1717783647298,5.93815402,3650.1,3650.0,131.24028703]
[1717783647495,2.73957,3650.2,3650.0,131.24028703]
[1717783647808,0.04303001,3650.1,3650.0,131.17208703]
[1717783648098,9.94073271,3650.4,3650.0,131.17208703]
[1717783648099,9.6526,3650.4,3650.0,131.17208703]
[1717783648397,0.008,3652.0,3650.0,131.17208703]
[1717783648599,0.06846561,3652.0,3650.0,131.17208703]
[1717783648809,0.0700744,3652.2,3650.0,131.17208703]
[1717783649131,0.0700744,3652.2,3650.1,2.2792]
[1717783649428,0.0700744,3652.2,3650.1,2.34257505]
[1717783650508,0.008,3653.3,3650.1,2.34257505]
[1717783650674,0.008,3654.3,3650.1,2.34257505]
[1717783651096,0.008,3654.2,3650.1,2.34257505]
[1717783651492,2.73668,3654.1,3650.1,2.34257505]
[1717783651699,0.07643739,3654.0,3650.1,2.34257505]
[1717783651900,2.73734,3653.2,3650.1,2.34257505]
[1717783652219,0.008,3653.7,3650.1,2.34257505]
[1717783652373,3.0,3653.7,3650.1,2.34257505]
[1717783652578,2.46201884,3654.4,3650.9,0.008]
[1717783652867,2.46201884,3654.4,3650.1,2.34257505]
[1717783652868,2.46201884,3654.4,3651.1,0.008]
[1717783653374,0.1598797,3654.9,3651.1,0.008]
[1717783653734,0.1598797,3654.9,3651.3,0.008]
[1717783653876,0.1598797,3654.9,3651.2,0.28818382]
[1717783653877,0.1598797,3654.9,3651.7,0.008]
[1717783654575,2.73621,3654.7,3651.7,0.008]
[1717783654774,2.73621,3654.7,3651.2,0.06335596]
[1717783654775,0.1598797,3654.9,3651.6,0.008]
[1717783655005,0.1598797,3654.9,3651.8,2.73831]
[1717783655216,0.1598797,3654.9,3651.9,0.008]
[1717783655389,0.1598797,3654.9,3651.7,0.008]
[1717783655621,2.73659,3654.2,3651.7,0.008]
[1717783655776,2.8959997,3654.9,3651.4,0.008]
[1717783655977,2.8959997,3654.9,3651.8,2.73835]
[1717783655978,0.1598797,3654.9,3651.8,2.73835]
[1717783656175,0.1598797,3654.9,3651.2,0.06335596]
[1717783656176,0.275,3654.8,3651.9,0.008]
[1717783656409,0.275,3654.8,3651.7,2.73837]
[1717783656642,0.275,3654.8,3651.8,0.008]
[1717783656926,0.275,3654.4,3652.9,1.39285466]
[1717783657217,0.1598797,3654.9,3651.2,0.06335596]
[1717783657218,2.73653,3654.3,3652.1,0.008]
[1717783657403,1.095013,3654.3,3651.5,0.008]
[1717783657602,2.73698,3653.7,3651.5,0.008]
[1717783657779,2.73698,3653.7,3651.2,0.06335596]
[1717783657780,2.73762,3652.9,3651.3,0.008]
[1717783657998,2.7371,3653.5,3651.0,0.008]
[1717783658218,2.73749,3653.0,3651.0,0.008]
[1717783658454,3.0,3652.9,3650.8,0.008]
[1717783658735,2.73752,3653.0,3651.4,3.35833889]
[1717783658942,2.73823,3652.0,3651.4,3.35833889]
[1717783659318,4.13108466,3652.0,3651.4,3.35833889]
[1717783659544,3.0,3651.9,3651.4,3.35833889]
[1717783659699,1.39285466,3651.8,3651.4,3.35833889]
[1717783659899,4.13131466,3651.7,3651.4,3.35833889]
[1717783660098,3.0,3651.6,3651.4,3.35833889]
[1717783660333,0.75,3652.8,3651.4,3.35833889]
[1717783660536,2.73703,3653.6,3651.4,3.35833889]
[1717783660805,4.12988466,3653.6,3651.4,3.35833889]
[1717783661059,1.46129625,3653.5,3651.4,3.35833889]
[1717783661341,2.73717,3653.4,3651.4,3.35833889]
[1717783661555,4.502,3653.9,3651.4,3.35833889]
[1717783661842,4.502,3653.9,3651.4,8.57609889]
[1717783662045,4.502,3653.9,3653.2,1.39285466]
[1717783662248,4.502,3653.9,3651.5,2.73858]
[1717783662474,1.095176,3654.4,3653.5,1.39285466]
[1717783662605,2.9543,3655.1,3653.7,1.39285466]
[1717783663550,0.275,3656.8,3653.9,1.39285466]
[1717783663551,2.73493,3656.4,3653.9,1.39285466]
[1717783663761,1.094765,3656.1,3653.9,1.39285466]
[1717783663905,1.094765,3656.1,3654.0,1.39285466]
[1717783664106,2.73532,3655.9,3654.1,1.39285466]
[1717783664549,1.094765,3656.1,3654.1,1.39285466]
[1717783664847,2.7341,3657.6,3655.0,1.39285466]
[1717783665149,1.094473,3657.0,3655.1,1.39285466]
[1717783665320,2.7344,3657.1,3655.1,1.39285466]
[1717783665514,2.80322614,3656.5,3655.1,1.39285466]
[1717783665947,1.094431,3657.2,3654.3,2.3098]
[1717783666243,11.804294,3656.4,3654.0,0.008]
[1717783666545,2.73536,3655.9,3653.3,0.008]
[1717783666949,0.275,3656.4,3653.6,2.73697]
[1717783667147,2.73476,3656.7,3653.7,0.008]
[1717783667463,1.094431,3657.2,3653.7,0.008]
[1717783667609,1.094431,3657.2,3653.3,0.008]
[1717783667808,1.094431,3657.2,3654.1,2.73659]
[1717783668031,3.828821,3657.2,3653.9,0.008]
[1717783668277,2.73446,3657.1,3654.0,2.73667]
[1717783668498,2.8855423,3656.6,3653.9,0.008]
[1717783668786,0.1507523,3656.6,3653.7,2.73689]
[1717783669075,0.1007523,3656.6,3655.5,1.39285466]
[1717783669482,0.1007523,3656.6,3654.4,0.008]
[1717783669779,1.49360696,3656.6,3654.5,1.39285466]
[1717783669982,1.49360696,3656.6,3652.3,1.97858851]
[1717783669983,1.39285466,3656.5,3654.1,0.008]
[1717783670186,0.1007523,3656.6,3652.0,0.22224788]
[1717783670187,2.73521,3656.1,3654.2,1.39285466]
[1717783670506,2.73521,3656.1,3652.0,0.22224788]
[1717783670507,2.73574,3655.4,3653.8,0.008]
[1717783670779,3.0,3656.0,3655.3,1.39285466]
[1717783671098,0.3757523,3656.6,3654.1,0.008]
[1717783671243,0.275,3656.1,3654.7,1.39285466]
[1717783671752,0.1007523,3656.6,3655.1,1.39285466]
[1717783671950,0.1007523,3656.6,3655.6,1.39285466]
[1717783672157,0.1007523,3656.6,3656.0,1.39285466]
[1717783672380,0.1007523,3656.6,3656.4,1.39285466]
[1717783672917,0.1007523,3656.6,3656.5,1.39285466]